[Event "Turkish Championship 2022"]
[Site "Kemer-Antalya"]
[Date "2022.11.26"]
[Round "2.1"]
[White "Yavuz, Efe Metehan"]
[Black "Ozsakallioglu, Okan"]
[Result "1-0"]
[ECO "E04"]
[WhiteElo "2256"]
[BlackElo "2288"]
[Annotator "TA"]
[PlyCount "119"]
[EventDate "2022.11.25"]
[EventCountry "TUR"]
[SourceTitle "playchess.com"]
[Source "ChessBase"]
[SourceQuality "1"]
[TimeControl "40/5400+30:1800+30"]

{[%evp 23,119,30,25,14,17,11,8,12,29,30,43,30,51,54,54,37,75,49,66,65,76,68,96,99,95,77,95,87,79,83,81,75,96,43,48,45,55,10,6,-47,-42,-45,-45,-45,-45,-46,-49,-85,-79,-166,-47,-74,-46,-71,-65,-49,4,0,189,129,129,135,129,130,128,126,166,167,167,170,183,177,208,199,241,237,288,230,324,321,321,320,377,377,374,327,373,327,373,372,367,319,521,379,29974,29975,29975,11760]} 1. d4 {[%emt 0:01:00]} Nf6 {[%emt 0:01:00]} 2. Nf3 {[%emt 0:00:30]} d5 {[%emt 0:00:30]} 3. c4 {[%emt 0:01:30]} e6 {[%emt 0:00:00]} 4. g3 {[%emt 0:05:30]} dxc4 {[%emt 0:01:00]} 5. Bg2 {[%emt 0:01:30]} c5 {[%emt 0:09:30]} 6. O-O {[%emt 0:02:30]} Nc6 {[%emt 0:03:30]} 7. dxc5 {[%emt 0:02:30]} Qxd1 {[%emt 0:00:30]} 8. Rxd1 {[%emt 0:00:30]} Bxc5 {[%emt 0:00:30]} 9. Nbd2 {[%emt 0:00:00]} c3 {[%emt 0:03:30]} 10. bxc3 {[%emt 0:00:00]} O-O {[%emt 0:18:30]} 11. Nb3 {[%emt 0:00:30]} Be7 {[%emt 0:00:00]} 12. c4 {[%emt 0:04:30]} Bd7 {[%emt 0:04:00]} 13. Bb2 {[%emt 0:00:30] E04: Open Catalan: 5 Nf3.} Rfd8 {[%emt 0:05:30] 13...Rfc8 is the hot move.} 14. Nfd4 {[%emt 0:00:30][%cal Bf3d4,Bd4b5,Bb5d6][%mdl 32]} Rac8 {[%emt 0:08:30]} 15. Nb5 {[%emt 0:15:30] The position is equal.} Be8 {[%emt 0:01:30]} 16. c5 {[%emt 0:07:30]} Rxd1+ {[%emt 0:14:30]} 17. Rxd1 {[%emt 0:00:30] [#]} Rb8 $146 {[%emt 0:00:30]} ({Predecessor:} 17... Nd8 18. Nd6 Bxd6 19. Rxd6 Bc6 20. Bxc6 Nxc6 21. Bxf6 gxf6 22. Rd7 b6 23. cxb6 axb6 {½-½ (31) Novikov,I (2547)-Kaidanov,G (2548) Saint Louis 2022}) 18. Nd6 {[%emt 0:04:30]} Rd8 {[%emt 0:01:30]} 19. h3 {[%emt 0:17:30]} Bf8 {[%emt 0:13:36]} 20. Kh2 {[%emt 0:08:30] White is much more active.} Be7 {[%emt 0:01:29]} 21. e3 {[%emt 0:05:30][%cal Be2e3,Be3e4][%mdl 32]} Kf8 {[%emt 0:02:09]} 22. Rd2 {[%emt 0:00:30]} Rd7 {[%emt 0:03:39]} 23. f4 {[%emt 0:05:26]} h6 {[%emt 0:04:46]} 24. e4 {[%emt 0:01:16]} Rc7 {[%emt 0:00:14]} 25. e5 {[%emt 0:01:05]} Nd7 {[%emt 0:00:39]} 26. Ba3 {[%emt 0:02:20]} Ndb8 {[%emt 0:00:15]} 27. Rb2 {[%emt 0:01:44]} f6 {[%emt 0:00:47]} 28. Re2 {[%emt 0:05:41]} (28. exf6 $16 Bxf6 29. Re2) 28... fxe5 $14 {[%emt 0:00:17]} 29. fxe5 {[%emt 0:00:49]} Bg6 {[%emt 0:00:07]} 30. Nd2 {[%emt 0:00:42]} Nd7 {[%emt 0:00:36]} 31. Bxc6 {[%emt 0:02:55]} (31. N2c4 $11) 31... Rxc6 $15 {[%emt 0:00:49]} 32. Nf3 {[%emt 0:00:28]} Ra6 {[%emt 0:00:38]} ({Resist} 32... Nxc5 33. Nd4 Nd3 34. Nxc6 (34. Nxe6+ Kg8 $17) 34... bxc6 35. Rc2 $16) 33. Re3 {[%emt 0:00:44]} Bb1 {[%emt 0:00:36]} 34. Nxb7 {[%emt 0:01:48]} Bxa2 {[%emt 0:00:12]} 35. Nd6 {[%emt 0:00:50][%cal Oc5c6]} Bd5 {[%emt 0:00:24]} 36. Nd4 {[%emt 0:00:32]} (36. Rc3 $17) 36... Nb8 {[%emt 0:01:04]} ({Black should play} 36... Bg5 $19 37. Rc3 Nxe5) 37. N4b5 {[%emt 0:00:27]} Bg5 {[%emt 0:01:05] A strong pair of Bishops.} 38. Rc3 {[%emt 0:00:40]} Nc6 {[%emt 0:00:59]} 39. Nc7 {[%emt 0:00:25]} Bd2 {[%emt 0:00:36]} (39... Ra4 $15 40. Nxd5 exd5) 40. Rd3 $36 {[%emt 0:00:00][%mdl 2048] White is more active.} Nxe5 $2 {[%emt 0:00:00]} (40... Ra5 $11 {and Black stays safe.}) 41. Nxa6 {[%emt 0:15:12]} (41. Rxd2 $2 {loses.} Nf3+ 42. Kg2 Nxd2+ $19) (41. Rxd5 $18 Nf3+ 42. Kg2 Rxa3 43. Nxe6+ Ke7 44. Nxg7) 41... Nxd3 $16 {[%emt 0:00:33]} 42. c6 $1 {[%emt 0:00:00]} Bxc6 {[%emt 0:04:30] [#] And now ...Kg8 would win.} 43. Nc4+ {[%emt 0:00:47]} Kf7 {[%emt 0:03:30]} 44. Nxd2 {[%emt 0:00:05]} Ne5 {[%emt 0:05:01]} 45. Bb2 {[%emt 0:05:00]} Nd7 {[%emt 0:05:09]} 46. Bd4 {[%emt 0:01:29]} Bb7 {[%emt 0:01:33]} 47. Nc7 {[%emt 0:01:30]} e5 {[%emt 0:02:24]} 48. Bxa7 {[%emt 0:00:50]} Bc6 {[%emt 0:00:10]} 49. Na6 {[%emt 0:00:04]} Nf6 {[%emt 0:06:54]} 50. Nc5 {[%emt 0:01:47]} g5 {[%emt 0:01:41]} (50... e4 $142 51. Kg1 g5) 51. Nc4 $18 {[%emt 0:00:35]} Bd5 {[%emt 0:00:59]} 52. Nxe5+ {[%emt 0:00:34]} Kg7 {[%emt 0:00:05]} 53. Bb6 {[%emt 0:01:11]} Ne8 {[%emt 0:01:44]} 54. Ba5 {[%emt 0:00:13]} Nd6 {[%emt 0:01:54]} 55. Bc3 {[%emt 0:00:32] [#] Black must now prevent Nc4+.} Kh7 {[%emt 0:00:16]} 56. Ncd7 {[%emt 0:02:08] aiming for Nf6+.} Ba2 {[%emt 0:00:14]} 57. Bb4 {[%emt 0:01:47]} Nf5 {[%emt 0:00:37]} (57... Ne8 {was worth a try.} 58. h4 gxh4 59. gxh4 Kg8) 58. Bc5 {[%emt 0:00:23] White threatens g4 and mate.} Kg7 $2 {[%emt 0:00:32]} (58... Kh8 $18 59. h4 Bb3 60. hxg5 hxg5) 59. g4 {[%emt 0:00:31]} Nh4 {[%emt 0:00:05]} 60. Bf8+ {[%emt 0:00:26] Weighted Error Value: White=0.19 (very precise) /Black=0.41} 1-0

[Event "Turkish Championship 2022"]
[Site "Kemer-Antalya"]
[Date "2022.11.26"]
[Round "2.2"]
[White "Kilic, Eray"]
[Black "Yilmaz, Mustafa"]
[Result "0-1"]
[ECO "A37"]
[WhiteElo "2437"]
[BlackElo "2621"]
[Annotator "TA"]
[PlyCount "104"]
[EventDate "2022.11.25"]
[EventCountry "TUR"]
[SourceTitle "playchess.com"]
[Source "ChessBase"]
[SourceQuality "1"]
[TimeControl "40/5400+30:1800+30"]

{[%evp 11,104,4,18,0,0,-6,-5,-9,-14,-16,-16,-55,-61,-60,-64,-68,-52,-102,-96,-115,-110,-102,-110,-137,-116,-184,-185,-166,-167,-187,-177,-162,-166,-168,-167,-163,-160,-176,-174,-193,-178,-204,-215,-214,-218,-208,-203,-200,-196,-268,-262,-273,-236,-214,-240,-281,-280,-277,-250,-349,-345,-376,-373,-357,-323,-317,-320,-317,-277,-281,-276,-321,-310,-349,-353,-393,-325,-377,-305,-368,-367,-352,-340,-390,-399,-1203,-1060,-2039,-1736,-1889,-1722,-1666,-1571,-4727,-4141]} 1. Nf3 {[%emt 0:01:00]} c5 {[%emt 0:03:00]} 2. g3 {[%emt 0:01:30]} Nc6 {[%emt 0:00:30]} 3. Bg2 {[%emt 0:00:30]} g6 {[%emt 0:00:30]} 4. O-O {[%emt 0:00:30]} Bg7 {[%emt 0:00:30]} 5. c4 {[%emt 0:01:30]} e6 {[%emt 0:03:30]} 6. Nc3 {[%emt 0:00:30]} d6 {[%emt 0:00:30]} 7. d3 {[%emt 0:05:30] A37: Symmetrical English vs ...g6: 4 Bg2 Bg7 5 Nf3.} Nge7 {[%emt 0:00:30][%cal Bg8e7,Be7f5,Bf5e3][%mdl 32]} 8. a3 {[%emt 0:04:30]} b6 {[%emt 0:07:30] has lost popularity (8...0-0).} 9. Bg5 {[%emt 0:07:30][%cal Of3e5] The position is equal.} Bb7 {[%emt 0:02:30] [#]} 10. d4 $146 {[%emt 0:07:30]} ({Predecessor:} 10. Rb1 h6 11. Bd2 O-O 12. Qc1 Kh7 13. b4 Qd7 14. Nb5 Nf5 15. e3 Rfd8 16. Rd1 {1-0 (48) Montero Melendez,R (2381)-Sanchez Martinez,A (2096) Algeciras 2018}) 10... h6 {[%emt 0:04:30]} 11. Be3 {[%emt 0:01:30]} Nf5 {[%emt 0:05:30]} 12. d5 {[%emt 0:04:30]} Nxe3 {[%emt 0:03:30]} 13. fxe3 {[%emt 0:00:30]} exd5 {[%emt 0:00:30]} 14. cxd5 {[%emt 0:05:30] [#]} (14. Qxd5 $15 O-O 15. Rac1) 14... Ne5 $1 $17 {[%emt 0:04:30]} 15. Qa4+ {[%emt 0:18:30]} Qd7 {[%emt 0:06:30]} 16. Qxd7+ {[%emt 0:04:30]} Nxd7 {[%emt 0:00:30]} 17. Nd2 {[%emt 0:00:30]} Ke7 {[%emt 0:06:30]} 18. Bh3 {[%emt 0:04:30]} (18. a4 $17 {keeps fighting.}) 18... Bxc3 $19 {[%emt 0:08:30]} 19. bxc3 {[%emt 0:00:30] [#] Bxd7 is the strong threat.} Bxd5 {[%emt 0:00:30]} 20. e4 {[%emt 0:01:30]} Bc6 {[%emt 0:09:30][%cal Bd5c6,Bc6d7,Bd7e6][%mdl 32]} 21. Bxd7 {[%emt 0:01:30]} Bxd7 {[%emt 0:00:30]} ({Don't take} 21... Kxd7 22. Rxf7+ Kd8 23. Raf1 $16) 22. a4 {[%emt 0:00:00]} Be6 {[%emt 0:01:30]} 23. c4 {[%emt 0:01:00]} Kd7 {[%emt 0:02:30]} 24. Ra3 {[%emt 0:02:30]} Kc6 {[%emt 0:03:30]} 25. Rb1 {[%emt 0:04:30]} Rab8 {[%emt 0:02:30]} 26. Rd3 {[%emt 0:02:51]} Rhe8 {[%emt 0:02:30]} 27. Rd1 {[%emt 0:04:16]} Rbd8 {[%emt 0:01:30]} 28. Re1 {[%emt 0:05:54]} f5 {[%emt 0:06:37]} 29. exf5 {[%emt 0:00:18]} gxf5 {[%emt 0:00:30]} (29... Bxf5 30. e4) 30. Rc3 {[%emt 0:00:58]} (30. Kf2 {was worth a try.}) 30... d5 {[%emt 0:01:10]} 31. cxd5+ {[%emt 0:00:04]} Bxd5 {[%emt 0:01:04]} 32. Kf2 {[%emt 0:00:44]} Bf7 {[%emt 0:01:32]} 33. Nf1 {[%emt 0:05:56]} Re4 {[%emt 0:05:21]} 34. Ra1 {[%emt 0:01:28]} Bh5 {[%emt 0:00:55]} 35. Rc2 {[%emt 0:01:28]} f4 {[%emt 0:00:23]} 36. gxf4 {[%emt 0:00:37]} Rxf4+ {[%emt 0:00:04]} 37. Ke1 {[%emt 0:00:27]} Bg6 {[%emt 0:02:16]} 38. Rc3 {[%emt 0:00:12]} Rh4 {[%emt 0:02:10] Prevents Rh3.} 39. Raa3 {[%emt 0:01:41]} Rdd4 {[%emt 0:01:03]} 40. Rf3 {[%emt 0:00:00]} Rdf4 {[%emt 0:00:00]} ({Stronger than} 40... Rxa4 41. Rf6+ Kb5 42. Rxa4 Kxa4 43. Rxg6 $11) 41. Rfe3 {[%emt 0:02:06]} Be4 {[%emt 0:06:55]} ({Inferior is} 41... Rxa4 42. Re6+ Kb5 43. Rxa4 Kxa4 44. Rxg6 $11) 42. Ng3 {[%emt 0:06:30]} Bd5 {[%emt 0:02:30][%cal Oa7a5]} 43. a5 {[%emt 0:02:30]} Rxh2 {[%emt 0:03:30] White must now prevent ...b5.} 44. Re7 {[%emt 0:03:07]} Rf7 {[%emt 0:01:30]} 45. Re8 {[%emt 0:00:27]} h5 {[%emt 0:05:43][%cal Bh6h5,Bh5h4][%mdl 32]} 46. axb6 {[%emt 0:04:28]} axb6 {[%emt 0:00:07]} 47. Rc8+ {[%emt 0:00:29]} Kb5 {[%emt 0:01:07]} 48. Rd3 $2 {[%emt 0:02:09]} (48. Re3) 48... h4 {[%emt 0:03:00] Black is clearly winning.} 49. Nh5 {[%emt 0:01:16]} Bc4 {[%emt 0:02:22]} 50. Re3 {[%emt 0:00:05]} Rh1+ {[%emt 0:00:14]} 51. Kd2 {[%emt 0:00:06]} Rd7+ {[%emt 0:01:36]} 52. Kc2 {[%emt 0:01:43]} Ra7 {[%emt 0:00:07] White got outplayed after the opening.   Weighted Error Value: White=0.55/Black=0.07 (flawless)} 0-1

[Event "Turkish Championship 2022"]
[Site "Kemer-Antalya"]
[Date "2022.11.26"]
[Round "2.3"]
[White "Yilmazyerli, Mert"]
[Black "Gokbulut, Julia"]
[Result "1-0"]
[ECO "B14"]
[WhiteElo "2534"]
[BlackElo "1912"]
[Annotator "TA"]
[PlyCount "97"]
[EventDate "2022.11.25"]
[EventCountry "TUR"]
[SourceTitle "playchess.com"]
[Source "ChessBase"]
[SourceQuality "1"]
[TimeControl "40/5400+30:1800+30"]

{[%evp 17,97,0,24,12,42,25,32,27,29,9,7,6,35,13,13,0,34,10,9,9,9,8,12,0,25,0,4,0,18,19,50,52,67,46,125,69,131,122,109,70,226,226,192,154,337,345,334,102,91,64,423,406,404,373,360,349,364,369,397,378,785,778,768,754,1064,1011,1591,1377,2358,1405,3396,3125,12841,12840,29983,29983,12843,12843,29985,29986,29990,29990]} 1. e4 {[%emt 0:03:00]} c6 {[%emt 0:01:00]} 2. d4 {[%emt 0:00:30]} d5 {[%emt 0:00:30]} 3. exd5 {[%emt 0:00:00]} cxd5 {[%emt 0:00:00]} 4. c4 {[%emt 0:00:00]} e6 {[%emt 0:00:00]} 5. Nc3 {[%emt 0:00:30]} Nf6 {[%emt 0:00:30]} 6. Nf3 {[%emt 0:00:00]} Bb4 {[%emt 0:00:30]} 7. cxd5 {[%emt 0:00:00]} Nxd5 {[%emt 0:01:30]} 8. Qc2 {[%emt 0:01:30]} Nc6 {[%emt 0:03:30]} 9. Bd3 {[%emt 0:00:30] 9.a3 is not played anymore.} h6 {[%emt 0:01:30]} 10. O-O {[%emt 0:01:30] B14: Caro-Kann: Panov-Botvinnik Attack with 5...e6 and 5...g6.} Be7 {[%emt 0:01:30]} 11. Qe2 {[%emt 0:03:30]} Nf6 {[%emt 0:02:30] [#]} 12. Bf4 $146 {[%emt 0:02:30] White is slightly better.} ({Predecessor:} 12. Be3 O-O 13. Rad1 b6 14. Ne5 Bb7 15. Bb1 Rc8 16. a3 Bd6 17. Qc2 Ne7 18. Qd3 Nf5 19. Rfe1 Ba8 20. Bf4 Qc7 {1-0 (39) Petrosyan,M (2553)-Shuvalova,P (2341) Riga 2021}) 12... O-O {[%emt 0:03:30]} 13. Be5 {[%emt 0:07:30]} Nb4 {[%emt 0:02:30]} 14. Bb1 {[%emt 0:00:30]} Nbd5 {[%emt 0:06:30]} 15. Qd3 {[%emt 0:01:30]} Nb4 {[%emt 0:01:30]} 16. Qe2 {[%emt 0:00:00]} Nbd5 {[%emt 0:02:30]} 17. a3 {[%emt 0:00:00]} (17. Qc2 $5 {[%cal Rc3d5]} Nb4 18. Qd1 $14) 17... Bd7 {[%emt 0:02:30]} 18. Qd3 {[%emt 0:05:30] Strongly threatening Nxd5.} g6 {[%emt 0:00:30]} 19. Qd2 {[%emt 0:16:30]} Kh7 {[%emt 0:02:30]} ({Much less strong is} 19... Ng4 20. Nxd5 exd5 21. Bg3 $16) 20. Re1 {[%emt 0:07:30]} Rc8 {[%emt 0:03:30]} 21. Qd3 {[%emt 0:03:30]} Be8 {[%emt 0:03:30]} 22. h4 {[%emt 0:01:30]} Nxc3 {[%emt 0:04:30]} 23. bxc3 {[%emt 0:01:30]} Qa5 {[%emt 0:08:30]} 24. c4 {[%emt 0:00:30]} Bc6 {[%emt 0:10:30]} 25. Ba2 {[%emt 0:05:30]} (25. Bc2 $5 {[%cal Rf3g5]}) 25... Rfd8 {[%emt 0:03:30]} ({Black should try} 25... Rcd8 $14) 26. Qe3 {[%emt 0:05:30]} (26. d5 $1 $16) 26... Ng4 {[%emt 0:06:30]} (26... Be8 $1 $14) 27. Qf4 $1 $16 {[%emt 0:00:30][%csl LRf7,LRg4][%cal Rf4f7]} f5 {[%emt 0:00:00]} 28. d5 {[%emt 0:00:30]} exd5 {[%emt 0:02:00] [#]} (28... Be8 $14) 29. h5 $1 $18 {[%emt 0:00:30]} Be8 {[%emt 0:15:25]} 30. cxd5 $40 {[%emt 0:03:30][%mdl 128] Black is in trouble.} Qb6 {[%emt 0:06:59]} (30... Nxe5 $16 {might work better.} 31. Qxe5 Bd6) 31. Bd4 {[%emt 0:07:30] Really sharp!} Qd6 {[%emt 0:00:26] [#]} 32. Ne5 $2 {[%emt 0:03:30]} (32. Qd2 $1 $18 {and the rest is easy. Re6 is the strong threat.} Bd7 33. hxg6+ (33. Bxa7 gxh5 34. Bd4 Re8 $16) 33... Kxg6 34. Ne5+ (34. Bxa7 Ra8 $16) 34... Nxe5 35. Bxe5) 32... Bg5 $16 {[%emt 0:01:27]} 33. Qf3 {[%emt 0:00:30]} Nxe5 {[%emt 0:01:00][%mdl 8192]} (33... Bf6 $1 $14 34. Qf4 (34. hxg6+ Bxg6 35. Qg3 Rc2 $14) 34... Bg5 35. hxg6+ Bxg6) 34. Bxe5 $18 {[%emt 0:00:34]} Qd7 {[%emt 0:00:09]} 35. d6 {[%emt 0:01:46]} Bf7 {[%emt 0:00:59] Inhibits Qd5.} 36. hxg6+ {[%emt 0:03:05]} Kxg6 {[%emt 0:00:10]} 37. Bb1 {[%emt 0:02:01]} Be6 {[%emt 0:00:47]} 38. Qg3 {[%emt 0:00:45] Threatens to win with f4.} Kf7 $2 {[%emt 0:00:52]} (38... Rc5 39. f4 Rxe5 40. fxe5 Rg8) 39. f4 {[%emt 0:00:07]} Bf6 {[%emt 0:00:30]} 40. Bxf6 {[%emt 0:00:00]} Kxf6 {[%emt 0:00:13]} 41. Qh4+ {[%emt 0:00:42]} Kg6 {[%emt 0:01:33]} 42. g4 {[%emt 0:01:30][%cal Oe1e6] White wants to mate with Rxe6+!} Rf8 {[%emt 0:08:30]} 43. Bxf5+ {[%emt 0:02:30]} Rxf5 {[%emt 0:00:30]} 44. gxf5+ {[%emt 0:00:00]} Bxf5 {[%emt 0:00:30]} 45. Qg3+ {[%emt 0:00:00]} Bg4 {[%emt 0:05:30]} 46. Re7 {[%emt 0:00:30]} Qf5 {[%emt 0:00:30]} 47. Re5 {[%emt 0:00:30]} Qd7 {[%emt 0:00:30]} 48. Rae1 {[%emt 0:02:30]} h5 {[%emt 0:06:56]} 49. Re6+ {[%emt 0:00:30] Weighted Error Value: White=0.19 (very precise) /Black=0.57} 1-0

[Event "Turkish Championship 2022"]
[Site "Kemer-Antalya"]
[Date "2022.11.26"]
[Round "2.4"]
[White "Koksal, Ege"]
[Black "Isik, Alparslan"]
[Result "1/2-1/2"]
[ECO "D37"]
[WhiteElo "2321"]
[BlackElo "2463"]
[Annotator "TA"]
[PlyCount "104"]
[EventDate "2022.11.25"]
[EventCountry "TUR"]
[SourceTitle "playchess.com"]
[Source "ChessBase"]
[SourceQuality "1"]
[TimeControl "40/5400+30:1800+30"]

{[%evp 15,104,5,4,8,5,3,13,7,16,4,13,9,8,6,11,15,16,0,-10,-38,-36,-34,-33,-25,-22,-23,-20,-31,-23,-47,0,-4,16,19,21,6,7,9,6,0,1,0,27,0,0,0,0,0,0,0,0,0,0,0,0,0,0,0,0,0,0,0,0,0,7,0,0,0,0,0,0,0,0,0,0,0,0,0,0,0,0,0,0,0,0,0,0,-8,0,-8,0]} 1. d4 {[%emt 0:01:00]} Nf6 {[%emt 0:01:00]} 2. c4 {[%emt 0:00:30]} e6 {[%emt 0:00:00]} 3. Nf3 {[%emt 0:00:00]} d5 {[%emt 0:00:00]} 4. Nc3 {[%emt 0:03:00]} Be7 {[%emt 0:00:30]} 5. Bf4 {[%emt 0:01:30]} O-O {[%emt 0:00:30]} 6. e3 {[%emt 0:00:30]} Nbd7 {[%emt 0:00:00]} 7. c5 {[%emt 0:00:30]} c6 {[%emt 0:06:00]} 8. Bd3 {[%emt 0:03:30]} b6 {[%emt 0:00:30]} 9. b4 {[%emt 0:00:30] D37: Queen's Gambit Declined: 5 Bf4.} a5 {[%emt 0:00:30]} 10. a3 {[%emt 0:01:30]} Ba6 {[%emt 0:00:00] [#] Hoping for ...Bxd3.} 11. O-O {[%emt 0:05:30]} Qc8 {[%emt 0:00:00]} 12. h3 {[%emt 0:14:30]} Qb7 {[%emt 0:03:30]} 13. Qe2 {[%emt 0:10:30] 13.Rb1 is a critical line.} Bxd3 {[%emt 0:05:30]} 14. Qxd3 {[%emt 0:00:30]} Ra7 {[%emt 0:00:30]} 15. Rfb1 {[%emt 0:07:30]} Rfa8 {[%emt 0:06:30]} 16. cxb6 {[%emt 0:04:30] [#]} Qxb6 $146 {[%emt 0:04:30][%cal Ra5b4]} ({Predecessor:} 16... Nxb6 17. b5 Rc8 18. Ne5 cxb5 19. Nxb5 Raa8 20. f3 Nfd7 21. Nxd7 Qxd7 22. Nc7 Rxc7 23. Rxb6 {0-1 (39) Dobner,A (1947)-Klapp,H (2123) GER email 2011}) 17. bxa5 {[%emt 0:16:30]} (17. b5 {simplifies} a4 18. Qd1 Qb7 19. bxc6 Qxc6 20. Rc1) 17... Qxa5 {[%emt 0:00:30]} 18. a4 {[%emt 0:03:30]} Ne8 {[%emt 0:10:30]} 19. Ne5 {[%emt 0:02:30]} Nxe5 {[%emt 0:01:30]} 20. Bxe5 {[%emt 0:00:30]} Nd6 {[%emt 0:23:30]} 21. Bxd6 {[%emt 0:03:17]} Bxd6 {[%emt 0:00:00]} 22. Rb3 {[%emt 0:00:25]} c5 {[%emt 0:05:00] [#] Strongly threatening ...c4.} 23. Rb5 {[%emt 0:04:35] Against c4} Qc7 {[%emt 0:04:30]} 24. dxc5 {[%emt 0:01:07]} Be5 {[%emt 0:04:30]} 25. Ra3 {[%emt 0:07:15]} h6 {[%emt 0:03:30]} (25... Ra5 $5 {[%cal Ra5b5]}) 26. g3 {[%emt 0:01:12]} Ra5 {[%emt 0:05:28]} 27. Rab3 {[%emt 0:02:33]} Rxb5 {[%emt 0:07:44]} 28. Qxb5 {[%emt 0:01:09]} (28. Rxb5 {simplifies} Bxc3 29. Qxc3 Rxa4 30. Qb2) 28... Rc8 {[%emt 0:00:08] Against c6} 29. Ne2 {[%emt 0:02:24]} Qxc5 {[%emt 0:00:11] The position is equal.} 30. Qxc5 {[%emt 0:01:38]} Rxc5 $11 {[%emt 0:00:01][%mdl 4096] Endgame KRB-KRN} 31. Ra3 {[%emt 0:00:06]} Bc7 {[%emt 0:04:20]} 32. Rc3 {[%emt 0:00:49]} Rxc3 {[%emt 0:00:30]} 33. Nxc3 {[%emt 0:00:00] KB-KN} Kf8 {[%emt 0:00:00]} 34. Kf1 {[%emt 0:00:33]} Ba5 {[%emt 0:00:14]} 35. Nb5 {[%emt 0:00:58]} Ke7 {[%emt 0:00:12]} 36. Nd4 {[%emt 0:00:22] Threatens to win with Nc6+.} Kd6 {[%emt 0:01:32] Against Nc6} 37. Nb3 {[%emt 0:00:03]} Bb6 {[%emt 0:01:30]} 38. Ke2 {[%emt 0:00:37]} e5 {[%emt 0:00:05]} 39. g4 {[%emt 0:00:24]} g6 {[%emt 0:00:55]} 40. f3 {[%emt 0:00:00]} f5 {[%emt 0:00:00]} 41. Nc1 {[%emt 0:26:11]} e4 {[%emt 0:06:10]} 42. gxf5 {[%emt 0:00:33]} gxf5 {[%emt 0:00:00]} 43. Nb3 {[%emt 0:00:00]} Ba7 {[%emt 0:03:00]} 44. Nd2 {[%emt 0:01:12]} Bb6 {[%emt 0:00:30]} 45. Nf1 {[%emt 0:02:03]} Ke5 {[%emt 0:01:30]} 46. f4+ {[%emt 0:00:37]} Kf6 {[%emt 0:03:30]} 47. Ng3 {[%emt 0:00:07]} Ke6 {[%emt 0:00:30]} 48. Nf1 {[%emt 0:01:30]} Bc7 {[%emt 0:01:30][%cal Od5d4]} 49. Nd2 {[%emt 0:00:38] Against d4} Bb6 {[%emt 0:02:30]} 50. Nb3 {[%emt 0:00:45]} Kd6 {[%emt 0:00:30]} 51. Kd2 {[%emt 0:01:55]} Ba7 {[%emt 0:00:30]} 52. Ke2 {[%emt 0:01:18]} Bb6 {[%emt 0:00:00] Weighted Error Value: White=0.04 (flawless) /Black=0.03 (flawless)} 1/2-1/2